[Event "XLII Barbera Open 2019"]
[Site "Barbera"]
[Date "2019.07.05"]
[Round "2.1"]
[White "Harutyunian, Tigran K."]
[Black "Vergara Jofre, Felipe"]
[Result "1-0"]
[ECO "E16"]
[WhiteElo "2539"]
[BlackElo "2332"]
[Annotator "ChessBase"]
[PlyCount "59"]
[EventDate "2019.07.04"]
[EventType "swiss"]
[EventCountry "ESP"]
[SourceTitle "playchess.com"]
[Source "ChessBase"]
[SourceQuality "1"]
[TimeControl "5400+30"]

1. d4 {[%emt 0:00:00]} Nf6 {[%emt 0:09:19]} 2. Nf3 {[%emt 0:00:00]} e6 {[%emt 0:00:04]} 3. c4 {[%emt 0:00:48]} Bb4+ {[%emt 0:00:04]} 4. Bd2 {[%emt 0:00:31]} Qe7 {[%emt 0:00:01]} 5. g3 Bxd2+ {[%emt 0:00:23]} 6. Qxd2 {[%emt 0:01:06]} Nc6 {[%emt 0:00:35]} 7. e3 {[%emt 0:00:27]} e5 {[%emt 0:07:01]} 8. dxe5 {[%emt 0:04:44]} Nxe5 {[%emt 0:00:37]} 9. Nxe5 {[%emt 0:00:09]} Qxe5 {[%emt 0:00:04]} 10. Bg2 {[%emt 0:00:15]} Ne4 {[%emt 0:12:35]} 11. Qd5 {[%emt 0:08:02]} Qxd5 {[%emt 0:00:02]} 12. cxd5 {[%emt 0:00:12]} Nd6 {[%emt 0:00:03]} 13. O-O {[%emt 0:01:16]} c5 {[%emt 0:03:15]} 14. e4 {[%emt 0:01:54]} f6 {[%emt 0:01:16]} 15. f4 {[%emt 0:02:41]} Nf7 {[%emt 0:07:47]} 16. e5 {[%emt 0:00:35]} fxe5 {[%emt 0:11:14]} 17. fxe5 {[%emt 0:00:06]} Nxe5 {[%emt 0:00:03]} 18. d6 {[%emt 0:00:07]} Nf7 {[%emt 0:01:31]} 19. Na3 {[%emt 0:01:36]} Nd8 {[%emt 0:05:01]} 20. Nb5 {[%emt 0:02:10]} Ne6 {[%emt 0:00:01]} 21. Nc7+ {[%emt 0:00:39]} Nxc7 {[%emt 0:00:12]} 22. dxc7 {[%emt 0:00:05]} Ke7 {[%emt 0:03:18]} 23. Rad1 {[%emt 0:00:07]} a5 {[%emt 0:05:53]} 24. Bd5 {[%emt 0:02:01]} Ra7 {[%emt 0:13:40]} 25. Bc4 {[%emt 0:00:10]} d5 {[%emt 0:01:24]} 26. Rxd5 {[%emt 0:00:07]} b5 {[%emt 0:03:59]} 27. Re1+ {[%emt 0:00:06]} Kf6 {[%emt 0:03:38]} 28. Rd6+ {[%emt 0:00:07]} Kf5 {[%emt 0:01:45]} 29. Bd3+ {[%emt 0:00:07]} Kg4 {[%emt 0:00:31]} 30. Rd8 {[%emt 0:00:21]} 1-0

[Event "XLII Barbera Open 2019"]
[Site "Barbera"]
[Date "2019.07.05"]
[Round "2.2"]
[White "Radnai, Adam"]
[Black "Rios, Cristhian Camilo"]
[Result "0-1"]
[ECO "D00"]
[WhiteElo "2309"]
[BlackElo "2520"]
[Annotator "ChessBase"]
[PlyCount "46"]
[EventDate "2019.07.04"]
[EventType "swiss"]
[EventCountry "ESP"]
[SourceTitle "playchess.com"]
[Source "ChessBase"]
[SourceQuality "1"]
[TimeControl "5400+30"]

1. d4 {[%emt 0:00:00]} d5 {[%emt 0:10:02]} 2. Bf4 {[%emt 0:00:00]} Nf6 {[%emt 0:00:10]} 3. e3 {[%emt 0:00:00]} e6 {[%emt 0:00:07]} 4. Nd2 {[%emt 0:00:44]} c5 {[%emt 0:00:07]} 5. c3 {[%emt 0:00:12]} Nc6 {[%emt 0:00:09]} 6. Ngf3 {[%emt 0:00:13]} Bd6 {[%emt 0:00:07]} 7. Bg3 {[%emt 0:00:07]} O-O {[%emt 0:00:06]} 8. Bd3 {[%emt 0:00:02]} b6 {[%emt 0:00:07]} 9. e4 {[%emt 0:00:04]} Be7 10. e5 {[%emt 0:06:28]} Nh5 {[%emt 0:00:38]} 11. Ng5 {[%emt 0:06:46]} Bxg5 {[%emt 0:06:19]} 12. Qxh5 {[%emt 0:00:26]} g6 {[%emt 0:03:36]} 13. Qe2 {[%emt 0:02:39]} cxd4 {[%emt 0:04:05]} 14. Nf3 {[%emt 0:03:47]} dxc3 {[%emt 0:00:55]} 15. Nxg5 {[%emt 0:10:07]} cxb2 {[%emt 0:00:55]} 16. Rd1 {[%emt 0:12:46]} Qxg5 {[%emt 0:00:36]} 17. Qxb2 {[%emt 0:08:15]} f5 {[%emt 0:06:43]} 18. h4 {[%emt 0:05:42]} Qg4 {[%emt 0:08:30]} 19. Qc1 {[%emt 0:08:36]} Bd7 {[%emt 0:02:50]} 20. Bf4 {[%emt 0:00:42]} Rac8 {[%emt 0:07:50]} 21. Qd2 {[%emt 0:02:59]} Qxg2 {[%emt 0:00:58]} 22. Rh2 {[%emt 0:08:24]} Qg1+ {[%emt 0:01:15]} 23. Bf1 Nxe5 {[%emt 0:12:46]} 0-1

[Event "XLII Barbera Open 2019"]
[Site "Barbera"]
[Date "2019.07.05"]
[Round "2.4"]
[White "Meessen, Rudolf"]
[Black "Moskalenko, Viktor"]
[Result "1/2-1/2"]
[ECO "B09"]
[WhiteElo "2269"]
[BlackElo "2500"]
[Annotator "ChessBase"]
[PlyCount "88"]
[EventDate "2019.07.04"]
[EventType "swiss"]
[EventCountry "ESP"]
[SourceTitle "playchess.com"]
[Source "ChessBase"]
[SourceQuality "1"]
[TimeControl "5400+30"]

1. d4 {[%emt 0:00:00]} d6 {[%emt 0:00:53]} 2. e4 {[%emt 0:00:00]} Nf6 {[%emt 0:00:05]} 3. Nc3 {[%emt 0:00:03]} g6 {[%emt 0:00:14]} 4. f4 {[%emt 0:03:34]} Bg7 {[%emt 0:01:24]} 5. Nf3 {[%emt 0:00:06]} Nc6 6. Be3 {[%emt 0:19:08]} O-O {[%emt 0:07:19]} 7. Qd2 {[%emt 0:01:10]} a6 {[%emt 0:13:43]} 8. O-O-O {[%emt 0:03:28]} b5 {[%emt 0:01:14]} 9. e5 {[%emt 0:03:29]} Ng4 {[%emt 0:14:09]} 10. h3 {[%emt 0:04:53]} Nxe3 {[%emt 0:01:33]} 11. Qxe3 {[%emt 0:00:06]} b4 {[%emt 0:23:08]} 12. Ne4 {[%emt 0:00:35]} Bf5 {[%emt 0:05:00]} 13. g4 {[%emt 0:03:34]} Bxe4 {[%emt 0:00:44]} 14. Qxe4 {[%emt 0:00:06]} Na7 {[%emt 0:02:35]} 15. h4 {[%emt 0:06:21]} d5 {[%emt 0:03:48]} 16. Qe3 {[%emt 0:02:57]} c5 {[%emt 0:00:30]} 17. dxc5 {[%emt 0:01:10]} Qa5 {[%emt 0:00:23]} 18. Kb1 {[%emt 0:04:15]} Rfc8 {[%emt 0:03:18]} 19. Rxd5 {[%emt 0:01:49]} e6 {[%emt 0:00:26]} 20. Rd7 {[%emt 0:05:05]} Rxc5 {[%emt 0:05:08]} 21. Qb3 {[%emt 0:04:25]} Nc6 {[%emt 0:01:03]} 22. Rxf7 {[%emt 0:03:21]} Rd5 {[%emt 0:02:02]} 23. Rxg7+ {[%emt 0:01:58]} Kxg7 {[%emt 0:00:05]} 24. Bc4 {[%emt 0:01:04]} Nd4 {[%emt 0:04:51]} 25. Nxd4 {[%emt 0:12:31]} Rxd4 {[%emt 0:00:09]} 26. Qf3 {[%emt 0:00:06]} Rf8 {[%emt 0:00:51]} 27. Qb7+ {[%emt 0:09:38]} Rf7 {[%emt 0:00:24]} 28. Qc8 {[%emt 0:00:15]} Rdxf4 {[%emt 0:02:06]} 29. h5 {[%emt 0:00:18]} Rf8 {[%emt 0:02:12]} 30. Qd7+ {[%emt 0:01:31]} R4f7 {[%emt 0:01:30]} 31. Qxe6 {[%emt 0:00:12]} Qd8 {[%emt 0:02:10]} 32. h6+ {[%emt 0:02:41]} Kh8 {[%emt 0:00:01]} 33. Qxf7 {[%emt 0:00:13]} Rxf7 {[%emt 0:00:05]} 34. Bxf7 {[%emt 0:00:04]} Qd4 {[%emt 0:02:46]} 35. e6 {[%emt 0:01:12]} Qd8 {[%emt 0:00:01]} 36. Re1 {[%emt 0:01:51]} Qd2 {[%emt 0:00:30]} 37. Rh1 {[%emt 0:00:30]} Qe2 {[%emt 0:00:53]} 38. g5 {[%emt 0:00:27]} a5 {[%emt 0:00:16]} 39. Rc1 {[%emt 0:01:47]} a4 {[%emt 0:00:26]} 40. a3 {[%emt 0:02:07]} bxa3 {[%emt 0:00:30]} 41. bxa3 {[%emt 0:00:30]} Qb5+ {[%emt 0:00:25]} 42. Ka2 {[%emt 0:00:00]} Qc4+ {[%emt 0:00:51]} 43. Kb2 {[%emt 0:00:29]} Qb5+ {[%emt 0:00:11]} 44. Ka2 {[%emt 0:00:15]} Qb2+ 1/2-1/2

[Event "XLII Barbera Open 2019"]
[Site "Barbera"]
[Date "2019.07.05"]
[Round "2.5"]
[White "Oliva Castaneda, Kevel"]
[Black "Cruz, Filemon"]
[Result "1-0"]
[ECO "E05"]
[WhiteElo "2467"]
[BlackElo "2304"]
[Annotator "ChessBase"]
[PlyCount "76"]
[EventDate "2019.07.04"]
[EventType "swiss"]
[EventCountry "ESP"]
[SourceTitle "playchess.com"]
[Source "ChessBase"]
[SourceQuality "1"]
[TimeControl "5400+30"]

1. d4 {[%emt 0:00:00]} Nf6 {[%emt 0:01:17]} 2. c4 {[%emt 0:00:00]} e6 {[%emt 0:00:52]} 3. g3 {[%emt 0:00:10]} d5 {[%emt 0:00:11]} 4. Nf3 {[%emt 0:00:06]} Be7 {[%emt 0:00:46]} 5. Bg2 {[%emt 0:00:13]} dxc4 {[%emt 0:01:21]} 6. Qa4+ {[%emt 0:01:14]} Bd7 {[%emt 0:00:29]} 7. Qxc4 {[%emt 0:00:07]} Bc6 {[%emt 0:00:06]} 8. O-O {[%emt 0:00:43]} O-O {[%emt 0:01:22]} 9. Rd1 {[%emt 0:00:51]} a6 {[%emt 0:00:55]} 10. b3 {[%emt 0:08:04]} Qc8 {[%emt 0:05:39]} 11. Bb2 {[%emt 0:01:14]} Rd8 {[%emt 0:02:32]} 12. Qc1 {[%emt 0:01:36]} b5 {[%emt 0:00:58]} 13. Qf4 {[%emt 0:05:30]} Bd6 {[%emt 0:02:06]} 14. Qh4 {[%emt 0:00:13]} Nbd7 {[%emt 0:00:19]} 15. Nbd2 {[%emt 0:01:07]} Nf8 {[%emt 0:00:20]} 16. Rac1 {[%emt 0:01:22]} Bb7 {[%emt 0:01:40]} 17. e4 {[%emt 0:09:15]} Ng6 {[%emt 0:04:41]} 18. Qh3 {[%emt 0:01:27]} Be7 {[%emt 0:02:45]} 19. Re1 {[%emt 0:06:22]} a5 {[%emt 0:05:34]} 20. a3 {[%emt 0:00:09]} b4 {[%emt 0:01:43]} 21. a4 {[%emt 0:00:08]} h6 {[%emt 0:01:39]} 22. Bf1 {[%emt 0:07:11]} Nd7 {[%emt 0:05:49]} 23. Rc2 {[%emt 0:03:58]} Qb8 {[%emt 0:02:55]} 24. Rec1 {[%emt 0:00:28]} c6 {[%emt 0:00:11]} 25. Bc4 {[%emt 0:10:55]} Ngf8 {[%emt 0:02:55]} 26. Ne1 {[%emt 0:04:06]} c5 {[%emt 0:02:58]} 27. dxc5 {[%emt 0:02:04]} Bxc5 {[%emt 0:02:12]} 28. Qg4 g6 {[%emt 0:11:37]} 29. Qh4 {[%emt 0:06:48]} h5 {[%emt 0:03:18]} 30. Ndf3 {[%emt 0:03:38]} Re8 {[%emt 0:03:31]} 31. Qg5 {[%emt 0:05:58]} Nh7 {[%emt 0:05:10]} 32. Qd2 {[%emt 0:02:03]} Ndf6 {[%emt 0:02:09]} 33. Bd3 {[%emt 0:02:55]} Bf8 {[%emt 0:01:53]} 34. Ne5 {[%emt 0:02:19]} Bg7 {[%emt 0:04:16]} 35. Qf4 {[%emt 0:02:00]} Rf8 {[%emt 0:08:00]} 36. Rc7 {[%emt 0:02:21]} g5 {[%emt 0:08:26]} 37. Qf3 {[%emt 0:02:07]} Qa7 {[%emt 0:01:14]} 38. Qe2 {[%emt 0:02:58]} Rac8 1-0

[Event "XLII Barbera Open 2019"]
[Site "Barbera"]
[Date "2019.07.05"]
[Round "2.6"]
[White "Subramanian, Aditya"]
[Black "Berdayes Ason, Dylan Isidro"]
[Result "1/2-1/2"]
[ECO "E14"]
[WhiteElo "2198"]
[BlackElo "2461"]
[Annotator "ChessBase"]
[PlyCount "81"]
[EventDate "2019.07.04"]
[EventType "swiss"]
[EventCountry "ESP"]
[SourceTitle "playchess.com"]
[Source "ChessBase"]
[SourceQuality "1"]
[TimeControl "5400+30"]

1. d4 {[%emt 0:00:00]} Nf6 {[%emt 0:00:00]} 2. c4 {[%emt 0:00:00]} e6 {[%emt 0:00:00]} 3. Nf3 {[%emt 0:00:00]} b6 {[%emt 0:00:38]} 4. e3 {[%emt 0:02:39]} Bb7 {[%emt 0:00:40]} 5. Bd3 {[%emt 0:00:06]} d5 {[%emt 0:00:42]} 6. O-O {[%emt 0:03:02]} Nbd7 {[%emt 0:02:56]} 7. b3 {[%emt 0:05:38]} Bd6 {[%emt 0:01:47]} 8. Bb2 {[%emt 0:00:18]} O-O {[%emt 0:01:13]} 9. Nc3 {[%emt 0:00:48]} a6 {[%emt 0:01:14]} 10. Rc1 {[%emt 0:01:10]} Ne4 {[%emt 0:05:23]} 11. Ne2 {[%emt 0:18:09]} Rc8 {[%emt 0:29:37]} 12. Ne5 f6 {[%emt 0:00:01]} 13. Nxd7 {[%emt 0:04:07]} Qxd7 {[%emt 0:02:19]} 14. c5 {[%emt 0:08:29]} Be7 {[%emt 0:01:23]} 15. f3 {[%emt 0:03:08]} Ng5 16. Qc2 bxc5 {[%emt 0:09:23]} 17. dxc5 {[%emt 0:02:57]} c6 {[%emt 0:00:27]} 18. h4 {[%emt 0:00:48]} Nf7 {[%emt 0:00:00]} 19. Bxh7+ {[%emt 0:00:43]} Kh8 20. Qg6 {[%emt 0:10:58]} Nh6 {[%emt 0:02:54]} 21. g4 {[%emt 0:05:33]} Qe8 {[%emt 0:16:01]} 22. Nf4 e5 {[%emt 0:01:33]} 23. Ne6 {[%emt 0:01:01]} Rf7 {[%emt 0:00:08]} 24. g5 {[%emt 0:01:07]} Qd7 25. gxh6 {[%emt 0:06:18]} Qxe6 {[%emt 0:00:54]} 26. Qf5 {[%emt 0:00:07]} Qxf5 {[%emt 0:00:17]} 27. Bxf5 Rb8 {[%emt 0:01:14]} 28. Be6 {[%emt 0:01:38]} Rff8 {[%emt 0:02:03]} 29. hxg7+ {[%emt 0:00:06]} Kxg7 {[%emt 0:00:00]} 30. Rc2 Bc8 {[%emt 0:00:27]} 31. Bxc8 {[%emt 0:04:18]} Rfxc8 {[%emt 0:00:10]} 32. f4 {[%emt 0:02:56]} e4 33. Bd4 {[%emt 0:01:27]} Rh8 {[%emt 0:01:06]} 34. Rh2 Rh5 {[%emt 0:00:35]} 35. Kf2 {[%emt 0:03:07]} Kf7 {[%emt 0:02:03]} 36. Ke2 {[%emt 0:07:44]} Rg8 37. Kd2 Rg4 {[%emt 0:02:55]} 38. Kc3 {[%emt 0:01:42]} Rgxh4 {[%emt 0:01:05]} 39. Rxh4 {[%emt 0:00:08]} Rxh4 40. b4 {[%emt 0:01:29]} Rh2 {[%emt 0:01:54]} 41. a4 1/2-1/2

[Event "XLII Barbera Open 2019"]
[Site "Barbera"]
[Date "2019.07.05"]
[Round "2.7"]
[White "Lacrosse, Marc"]
[Black "Sturt, Raven"]
[Result "0-1"]
[ECO "A65"]
[WhiteElo "2189"]
[BlackElo "2429"]
[Annotator "NA"]
[PlyCount "84"]
[EventDate "2019.07.04"]
[EventType "swiss"]
[EventCountry "ESP"]
[SourceTitle "playchess.com"]
[Source "ChessBase"]
[SourceQuality "1"]
[TimeControl "5400+30"]

1. d4 {[%emt 0:11:45]} Nf6 {[%emt 0:00:00]} 2. c4 {[%emt 0:00:33]} c5 {[%emt 0:00:00]} 3. d5 {[%emt 0:00:14]} e6 {[%emt 0:00:00]} 4. Nc3 {[%emt 0:00:11]} exd5 {[%emt 0:00:00]} 5. cxd5 {[%emt 0:00:06]} d6 {[%emt 0:00:00]} 6. e4 {[%emt 0:00:54]} g6 {[%emt 0:00:05]} 7. h3 {[%emt 0:00:21]} Bg7 {[%emt 0:00:29]} 8. Nf3 {[%emt 0:00:13]} O-O {[%emt 0:01:18]} 9. Bd3 {[%emt 0:00:25]} Re8 {[%emt 0:04:21]} 10. O-O {[%emt 0:01:14]} a6 {[%emt 0:08:32]} 11. a4 {[%emt 0:00:52]} Nbd7 {[%emt 0:03:39]} 12. Re1 {[%emt 0:02:17]} Qc7 {[%emt 0:05:14]} 13. Bf4 {[%emt 0:05:54]} c4 {[%emt 0:05:33]} 14. Bf1 {[%emt 0:03:17]} Rb8 {[%emt 0:01:45]} 15. a5 {[%emt 0:14:21]} b5 {[%emt 0:07:59]} 16. axb6 {[%emt 0:01:46]} Rxb6 {[%emt 0:02:31]} 17. Ra2 {[%emt 0:03:44]} Rb4 {[%emt 0:12:59]} 18. Nd4 {[%emt 0:12:18]} Nh5 {[%emt 0:08:32]} 19. Be3 {[%emt 0:00:59]} Nc5 {[%emt 0:01:16]} 20. g4 {[%emt 0:13:43]} Nf6 {[%emt 0:00:05]} 21. Nc6 {[%emt 0:03:38]} Rb6 {[%emt 0:07:56]} 22. e5 {[%emt 0:02:42]} Nxd5 {[%emt 0:03:19]} 23. Nxd5 {[%emt 0:01:31]} Qxc6 {[%emt 0:00:09]} 24. Bg2 {[%emt 0:01:39]} Rxe5 {[%emt 0:04:09]} 25. Ne7+ {[%emt 0:02:31]} Rxe7 {[%emt 0:00:02]} 26. Bxc6 Rxc6 {[%emt 0:00:14]} 27. Bxc5 {[%emt 0:03:16]} Rxe1+ {[%emt 0:00:13]} 28. Qxe1 {[%emt 0:00:05]} Rxc5 {[%emt 0:00:05]} 29. Ra5 {[%emt 0:03:18]} Be6 {[%emt 0:00:57]} 30. Rxc5 {[%emt 0:03:11]} dxc5 {[%emt 0:00:02]} 31. Qd2 {[%emt 0:00:23]} Bd4 {[%emt 0:00:14]} 32. Kg2 {[%emt 0:01:29]} Kf8 {[%emt 0:00:25]} 33. Kg3 {[%emt 0:00:46]} Ke7 {[%emt 0:06:36]} 34. Qc2 {[%emt 0:04:25]} Kd6 {[%emt 0:01:43]} 35. f3 {[%emt 0:00:47]} Kc6 {[%emt 0:00:31]} 36. Qa4+ {[%emt 0:00:52]} Kb7 {[%emt 0:00:17]} 37. Qc2 {[%emt 0:00:24]} Kb6 {[%emt 0:00:07]} 38. Kg2 {[%emt 0:01:13]} Kb5 {[%emt 0:00:06]} 39. Qd2 {[%emt 0:00:53]} Ka4 {[%emt 0:00:20]} 40. Qd1+ {[%emt 0:00:46]} Kb4 {[%emt 0:00:10]} 41. Qa1 {[%emt 0:00:09]} Kb3 {[%emt 0:00:16]} 42. Qa3+ {[%emt 0:01:14]} Kc2 {[%emt 0:00:02]} 0-1

[Event "XLII Barbera Open 2019"]
[Site "Barbera"]
[Date "2019.07.05"]
[Round "2.8"]
[White "Morales, Jhon Alexander"]
[Black "Pena Morales, Hugo"]
[Result "1-0"]
[ECO "B34"]
[WhiteElo "2422"]
[BlackElo "2267"]
[Annotator "NA"]
[PlyCount "123"]
[EventDate "2019.07.04"]
[EventType "swiss"]
[EventCountry "ESP"]
[SourceTitle "playchess.com"]
[Source "ChessBase"]
[SourceQuality "1"]
[TimeControl "5400+30"]

1. e4 {[%emt 0:09:42]} c5 {[%emt 0:03:37]} 2. Nc3 {[%emt 0:00:49]} Nc6 {[%emt 0:00:07]} 3. Nge2 {[%emt 0:00:18]} g6 {[%emt 0:01:38]} 4. d4 {[%emt 0:08:17]} cxd4 {[%emt 0:00:06]} 5. Nxd4 {[%emt 0:00:05]} Bg7 {[%emt 0:00:05]} 6. Nde2 {[%emt 0:01:42]} d6 {[%emt 0:03:01]} 7. g3 {[%emt 0:00:11]} Bg4 {[%emt 0:03:58]} 8. Bg2 {[%emt 0:00:13]} Nf6 {[%emt 0:00:14]} 9. h3 {[%emt 0:02:43]} Be6 {[%emt 0:00:12]} 10. O-O {[%emt 0:00:30]} Bc4 {[%emt 0:00:10]} 11. Re1 {[%emt 0:00:38]} O-O {[%emt 0:00:08]} 12. Rb1 {[%emt 0:02:57]} Rc8 {[%emt 0:01:59]} 13. b3 {[%emt 0:18:20]} Ba6 {[%emt 0:00:22]} 14. a4 {[%emt 0:00:28]} Nb4 {[%emt 0:01:42]} 15. Ba3 {[%emt 0:05:11]} Qa5 {[%emt 0:07:43]} 16. Qd2 {[%emt 0:12:44]} Nxc2 {[%emt 0:15:13]} 17. Qxc2 {[%emt 0:00:22]} Bxe2 {[%emt 0:03:03]} 18. Qxe2 {[%emt 0:02:30]} Rxc3 {[%emt 0:04:25]} 19. e5 {[%emt 0:00:32]} dxe5 {[%emt 0:04:12]} 20. Qxe5 {[%emt 0:02:34]} Qxe5 {[%emt 0:17:17]} 21. Rxe5 {[%emt 0:00:17]} Rd8 {[%emt 0:00:07]} 22. Rxe7 {[%emt 0:05:01]} Bf8 {[%emt 0:02:31]} 23. Bb4 {[%emt 0:00:15]} Nd5 {[%emt 0:03:42]} 24. Bxd5 {[%emt 0:03:03]} Bxe7 {[%emt 0:00:10]} 25. Bxf7+ {[%emt 0:01:49]} Kxf7 {[%emt 0:00:01]} 26. Bxc3 {[%emt 0:00:08]} Rd3 {[%emt 0:00:04]} 27. Be1 {[%emt 0:00:49]} h5 {[%emt 0:00:47]} 28. Kf1 {[%emt 0:00:19]} Ke6 {[%emt 0:01:25]} 29. Ke2 {[%emt 0:01:04]} Rd5 {[%emt 0:00:01]} 30. Rc1 {[%emt 0:03:29]} Re5+ {[%emt 0:00:37]} 31. Kf1 {[%emt 0:01:07]} Rc5 {[%emt 0:01:55]} 32. Rxc5 {[%emt 0:02:18]} Bxc5 {[%emt 0:00:40]} 33. Ke2 {[%emt 0:00:05]} Kd5 {[%emt 0:00:05]} 34. Kd3 {[%emt 0:00:35]} a6 {[%emt 0:00:25]} 35. f3 {[%emt 0:00:20]} b5 {[%emt 0:00:15]} 36. axb5 {[%emt 0:03:04]} axb5 {[%emt 0:00:01]} 37. Bd2 {[%emt 0:00:19]} Bd6 {[%emt 0:00:29]} 38. f4 {[%emt 0:05:09]} Bc7 {[%emt 0:01:20]} 39. Ke3 {[%emt 0:00:29]} Bd6 {[%emt 0:03:23]} 40. Bc3 {[%emt 0:00:43]} Be7 {[%emt 0:06:42]} 41. Kf3 {[%emt 0:00:35]} b4 {[%emt 0:03:28]} 42. Bg7 {[%emt 0:01:15]} Bd6 {[%emt 0:02:16]} 43. g4 {[%emt 0:00:15]} hxg4+ {[%emt 0:00:10]} 44. hxg4 {[%emt 0:00:04]} Bc5 {[%emt 0:00:33]} 45. f5 {[%emt 0:01:47]} gxf5 {[%emt 0:00:04]} 46. gxf5 {[%emt 0:00:05]} Bd6 {[%emt 0:00:19]} 47. Bb2 {[%emt 0:04:57]} Bc5 {[%emt 0:00:52]} 48. Kf4 {[%emt 0:01:33]} Bd6+ {[%emt 0:03:26]} 49. Kg5 {[%emt 0:00:15]} Ke4 {[%emt 0:00:44]} 50. Kf6 {[%emt 0:00:05]} Kd3 {[%emt 0:00:05]} 51. Ke6 {[%emt 0:00:05]} Bf8 {[%emt 0:00:02]} 52. Be5 {[%emt 0:00:10]} Kc2 {[%emt 0:00:22]} 53. Bd6 {[%emt 0:00:10]} Bh6 {[%emt 0:00:04]} 54. Bxb4 {[%emt 0:01:02]} Kxb3 {[%emt 0:00:02]} 55. Bd6 {[%emt 0:00:11]} Bg7 {[%emt 0:02:47]} 56. Be5 {[%emt 0:00:06]} Bf8 {[%emt 0:00:13]} 57. f6 {[%emt 0:00:06]} Kc4 {[%emt 0:00:13]} 58. Bd6 {[%emt 0:00:06]} Bh6 {[%emt 0:00:18]} 59. f7 {[%emt 0:00:39]} Kd4 {[%emt 0:02:06]} 60. Be7 {[%emt 0:00:24]} Ke4 {[%emt 0:00:28]} 61. Kf6 {[%emt 0:00:19]} Kd5 {[%emt 0:00:04]} 62. Ba3 {[%emt 0:00:08]} 1-0

[Event "XLII Barbera Open 2019"]
[Site "Barbera"]
[Date "2019.07.05"]
[Round "2.9"]
[White "Ros Alonso, Jaume"]
[Black "Perez Mitjans, Orelvis"]
[Result "0-1"]
[ECO "C61"]
[WhiteElo "2178"]
[BlackElo "2416"]
[Annotator "NA"]
[PlyCount "64"]
[EventDate "2019.07.04"]
[EventType "swiss"]
[EventCountry "ESP"]
[SourceTitle "playchess.com"]
[Source "ChessBase"]
[SourceQuality "1"]
[TimeControl "5400+30"]

1. e4 {[%emt 0:02:33]} e5 {[%emt 0:03:57]} 2. Nf3 {[%emt 0:00:20]} Nc6 {[%emt 0:00:07]} 3. Bb5 {[%emt 0:00:07]} Nd4 {[%emt 0:00:07]} 4. Nxd4 {[%emt 0:00:18]} exd4 {[%emt 0:00:05]} 5. O-O {[%emt 0:01:06]} Bc5 {[%emt 0:00:07]} 6. d3 {[%emt 0:00:58]} c6 {[%emt 0:03:18]} 7. Bc4 {[%emt 0:01:22]} d5 {[%emt 0:00:35]} 8. exd5 {[%emt 0:01:39]} cxd5 {[%emt 0:00:05]} 9. Bb5+ {[%emt 0:03:26]} Kf8 {[%emt 0:00:06]} 10. Re1 {[%emt 0:02:38]} Ne7 {[%emt 0:00:05]} 11. Bg5 {[%emt 0:05:32]} f6 {[%emt 0:00:56]} 12. Bf4 {[%emt 0:00:38]} h5 {[%emt 0:00:26]} 13. h3 {[%emt 0:06:22]} g5 {[%emt 0:01:01]} 14. Bh2 {[%emt 0:01:57]} g4 {[%emt 0:00:17]} 15. h4 {[%emt 0:00:42]} Kf7 {[%emt 0:02:26]} 16. c4 {[%emt 0:04:03]} a6 {[%emt 0:14:15]} 17. Ba4 {[%emt 0:00:23]} dxc4 {[%emt 0:04:13]} 18. Nd2 {[%emt 0:04:39]} Nf5 {[%emt 0:05:29]} 19. Qc2 {[%emt 0:09:23]} b5 {[%emt 0:18:01]} 20. Bb3 {[%emt 0:05:18]} Kg7 {[%emt 0:07:05]} 21. Nxc4 {[%emt 0:11:15]} bxc4 {[%emt 0:01:31]} 22. Qxc4 {[%emt 0:00:08]} Bd6 {[%emt 0:03:55]} 23. Bxd6 {[%emt 0:07:57]} Qxd6 {[%emt 0:12:00]} 24. Qf7+ {[%emt 0:10:58]} Kh6 {[%emt 0:00:14]} 25. Rac1 {[%emt 0:00:20]} Rh7 {[%emt 0:03:41]} 26. Qg8 {[%emt 0:02:58]} Bb7 {[%emt 0:00:14]} 27. Re8 {[%emt 0:00:22]} Rxe8 {[%emt 0:00:34]} 28. Qxe8 {[%emt 0:00:06]} Qe7 {[%emt 0:02:09]} 29. Qb8 {[%emt 0:02:30]} Nxh4 {[%emt 0:00:49]} 30. Qf4+ {[%emt 0:02:31]} Kg6 {[%emt 0:00:29]} 31. Qxd4 {[%emt 0:00:53]} Nxg2 {[%emt 0:00:19]} 32. Bc2 {[%emt 0:07:03]} Ne1 {[%emt 0:00:56]} 0-1

[Event "XLII Barbera Open 2019"]
[Site "Barbera"]
[Date "2019.07.05"]
[Round "2.10"]
[White "Singh, S. Vikramjit"]
[Black "Volkov, Dmitry V"]
[Result "1/2-1/2"]
[ECO "E79"]
[WhiteElo "2164"]
[BlackElo "2199"]
[Annotator "NA"]
[PlyCount "25"]
[EventDate "2019.07.04"]
[EventType "swiss"]
[EventCountry "ESP"]
[SourceTitle "playchess.com"]
[Source "ChessBase"]
[SourceQuality "1"]
[TimeControl "5400+30"]

1. d4 Nf6 2. c4 g6 3. Nc3 Bg7 4. e4 d6 5. f4 O-O 6. Nf3 c5 7. Be2 cxd4 8. Nxd4 Nc6 9. Be3 Nd7 10. Qd2 Nc5 11. O-O Nxd4 12. Bxd4 e5 13. Be3 1/2-1/2

[Event "XLII Barbera Open 2019"]
[Site "Barbera"]
[Date "2019.07.06"]
[Round "3.1"]
[White "Perez Mitjans, Orelvis"]
[Black "Harutyunian, Tigran K."]
[Result "1/2-1/2"]
[ECO "C77"]
[WhiteElo "2416"]
[BlackElo "2539"]
[Annotator "ChessBase"]
[PlyCount "79"]
[EventDate "2019.07.04"]
[EventType "swiss"]
[EventCountry "ESP"]
[SourceTitle "playchess.com"]
[Source "ChessBase"]
[SourceQuality "1"]
[TimeControl "5400+30"]

1. e4 {[%emt 0:13:42]} e5 {[%emt 0:00:00]} 2. Nf3 {[%emt 0:00:08]} Nc6 {[%emt 0:00:00]} 3. Bb5 {[%emt 0:00:06]} a6 {[%emt 0:00:06]} 4. Ba4 {[%emt 0:00:06]} Nf6 {[%emt 0:00:11]} 5. d3 {[%emt 0:00:08]} b5 {[%emt 0:02:55]} 6. Bb3 {[%emt 0:00:08]} Be7 {[%emt 0:00:56]} 7. O-O {[%emt 0:00:18]} O-O {[%emt 0:01:13]} 8. Nc3 {[%emt 0:00:39]} d6 {[%emt 0:00:12]} 9. a3 {[%emt 0:00:06]} Nb8 {[%emt 0:00:20]} 10. Ne2 {[%emt 0:01:26]} Nbd7 {[%emt 0:00:58]} 11. Ng3 {[%emt 0:01:45]} Nc5 {[%emt 0:00:09]} 12. Ba2 {[%emt 0:00:08]} Be6 {[%emt 0:00:11]} 13. Re1 {[%emt 0:11:19]} Re8 {[%emt 0:04:43]} 14. Bxe6 {[%emt 0:02:07]} Nxe6 {[%emt 0:00:23]} 15. c3 {[%emt 0:03:12]} c5 {[%emt 0:02:00]} 16. d4 {[%emt 0:08:05]} cxd4 {[%emt 0:08:26]} 17. cxd4 {[%emt 0:02:14]} exd4 {[%emt 0:01:21]} 18. Nxd4 {[%emt 0:00:07]} Nxd4 {[%emt 0:00:45]} 19. Qxd4 {[%emt 0:00:05]} Nd7 {[%emt 0:00:06]} 20. Nf5 {[%emt 0:04:41]} Bf6 {[%emt 0:01:39]} 21. Qxd6 {[%emt 0:03:18]} Ne5 {[%emt 0:00:07]} 22. Rd1 {[%emt 0:05:35]} Qxd6 {[%emt 0:20:35]} 23. Nxd6 {[%emt 0:10:19]} Re6 {[%emt 0:00:06]} 24. Bf4 {[%emt 0:03:01]} Ng6 {[%emt 0:03:02]} 25. e5 {[%emt 0:02:25]} Nxe5 {[%emt 0:04:16]} 26. Ne4 {[%emt 0:07:11]} Nc4 {[%emt 0:00:21]} 27. Nxf6+ {[%emt 0:00:44]} Rxf6 {[%emt 0:00:06]} 28. Bc1 {[%emt 0:00:29]} Re8 {[%emt 0:00:03]} 29. Kf1 {[%emt 0:01:35]} h6 {[%emt 0:01:59]} 30. b3 {[%emt 0:04:40]} Ne3+ {[%emt 0:00:16]} 31. Bxe3 {[%emt 0:00:05]} Rxe3 {[%emt 0:00:05]} 32. Rab1 {[%emt 0:00:19]} Rc3 {[%emt 0:00:24]} 33. Rb2 {[%emt 0:00:11]} g6 {[%emt 0:03:58]} 34. g3 {[%emt 0:02:54]} h5 {[%emt 0:01:29]} 35. Rd4 {[%emt 0:00:39]} Kg7 {[%emt 0:09:36]} 36. a4 {[%emt 0:01:57]} Rf5 {[%emt 0:00:34]} 37. Kg2 {[%emt 0:00:49]} a5 {[%emt 0:02:01]} 38. axb5 {[%emt 0:00:33]} Rxb5 {[%emt 0:00:13]} 39. Ra4 {[%emt 0:00:10]} g5 {[%emt 0:00:34]} 40. b4 {[%emt 0:01:14]} 1/2-1/2